bitfinex-derivatives/quotes_BTCF0:USTF0_20240814
["timestamp","ask_amount","ask_price","bid_price","bid_amount"]
[1723647741137,0.45169214,59458.0,59449.0,0.3608]
[1723647741339,0.3608,59450.0,59444.0,0.00148]
[1723647741534,0.3608,59450.0,59443.0,0.00025231]
[1723647741747,0.3608,59450.0,59443.0,0.08434031]
[1723647741943,0.084087,59445.0,59444.0,0.084088]
[1723647742151,0.3608,59450.0,59443.0,0.00025231]
[1723647742643,0.009,59445.0,59444.0,0.001]
[1723647742853,0.093087,59445.0,59444.0,0.001]
[1723647743035,0.3608,59445.0,59443.0,0.00125231]
[1723647743345,0.168176,59444.0,59443.0,0.00125231]
[1723647743939,0.0841,59436.0,59435.0,0.1774]
[1723647744143,0.444888,59445.0,59439.0,0.084094]
[1723647744452,0.3608,59445.0,59441.0,0.084091]
[1723647744951,0.3608,59445.0,59442.0,0.08409]
[1723647745243,0.3608,59445.0,59435.0,0.1774]
[1723647745244,0.08409,59443.0,59438.0,0.084096]
[1723647745650,0.08409,59443.0,59435.0,0.1774]
[1723647745651,0.08409,59443.0,59439.0,0.084095]
[1723647745841,0.08409,59443.0,59440.0,0.084093]
[1723647746440,0.08409,59443.0,59442.0,0.001]
[1723647746749,0.09109,59443.0,59442.0,0.001]
[1723647747148,0.60256801,59443.0,59442.0,0.001]
[1723647747340,0.3635,59437.0,59421.0,0.22000353]
[1723647747539,0.3608,59432.0,59426.0,0.261914]
[1723647747746,0.3608,59432.0,59426.0,0.1778]
[1723647747945,0.3608,59432.0,59431.0,0.084107]
[1723647750048,0.3608,59432.0,59427.0,0.084112]
[1723647750346,0.3608,59432.0,59426.0,0.22740353]
[1723647750347,0.084112,59427.0,59426.0,0.1778]
[1723647750552,0.084107,59431.0,59426.0,0.1778]
[1723647750744,0.3608,59432.0,59431.0,0.084107]
[1723647751751,0.00025231,59435.0,59434.0,0.084102]
[1723647752051,0.00025231,59435.0,59434.0,0.588862]
[1723647752258,0.00025231,59435.0,59434.0,0.988862]
[1723647752551,0.00025231,59435.0,59434.0,0.084102]
[1723647752940,0.00025231,59435.0,59434.0,0.63846553]
[1723647753147,0.3608,59447.0,59434.0,0.63846553]
[1723647753148,0.3608,59447.0,59446.0,0.084085]
[1723647753558,0.084077,59453.0,59446.0,0.04977889]
[1723647753746,0.084071,59457.0,59448.0,0.04977889]
[1723647753947,0.3608,59460.0,59450.0,0.04977889]
[1723647754142,0.36797221,59460.0,59454.0,0.084074]
[1723647754349,0.084073,59455.0,59454.0,0.084074]
[1723647754547,0.444873,59455.0,59454.0,0.084074]
[1723647754752,0.084073,59455.0,59454.0,0.084074]
[1723647755156,0.36797221,59460.0,59451.0,0.04977889]
[1723647755459,0.3608,59455.0,59450.0,0.04977889]
[1723647755765,0.084079,59451.0,59449.0,0.00025231]
[1723647755944,0.3608,59450.0,59449.0,0.00025231]
[1723647756345,0.3708,59457.0,59449.0,0.00025231]
[1723647756555,0.3708,59457.0,59455.0,0.04990827]
[1723647756758,0.3708,59457.0,59456.0,0.04990827]
[1723647756959,0.37789269,59457.0,59455.0,0.04990827]
[1723647757261,0.01709269,59457.0,59456.0,0.084071]
[1723647757452,0.01,59457.0,59456.0,0.084071]
[1723647758367,0.08406,59464.0,59460.0,0.084066]
[1723647758658,0.3608,59468.0,59467.0,0.084056]
[1723647758858,0.084054,59468.0,59467.0,0.04984092]
[1723647759057,0.084057,59466.0,59465.0,0.06645456]
[1723647759360,0.9599,59471.0,59462.0,0.06645269]
[1723647759661,0.3608,59466.0,59465.0,0.04981707]
[1723647759855,0.3608,59466.0,59465.0,0.13387607]
[1723647760559,0.3608,59466.0,59465.0,0.084059]
[1723647761058,0.37572,59471.0,59465.0,0.50448]
[1723647761258,0.014,59471.0,59470.0,0.084052]
[1723647761453,0.3608,59480.0,59470.0,0.04979211]
[1723647761663,0.3608,59480.0,59472.0,0.04979211]
[1723647761963,0.444838,59480.0,59475.0,0.04979211]
[1723647762259,0.3608,59480.0,59479.0,0.084039]
[1723647762961,0.00025231,59485.0,59484.0,0.084032]
[1723647763654,0.00025231,59485.0,59484.0,0.588352]
[1723647764751,0.00025231,59485.0,59484.0,0.084032]
[1723647765269,0.00025231,59485.0,59480.0,0.084036]
[1723647765561,0.00125231,59485.0,59484.0,0.092032]
[1723647765765,0.08528231,59485.0,59484.0,0.01]
[1723647767162,0.08528231,59485.0,59484.0,0.008]
[1723647767757,0.08528231,59485.0,59484.0,0.092032]
[1723647767758,0.00125231,59485.0,59484.0,0.092032]
[1723647767954,0.00025231,59485.0,59484.0,0.084032]
[1723647768159,0.00825231,59485.0,59484.0,0.085032]
[1723647769352,0.084014,59497.0,59484.0,0.589352]
[1723647769557,0.084014,59497.0,59485.0,0.1657]
[1723647769756,0.3608,59499.0,59485.0,0.1669]
[1723647769757,0.3608,59494.0,59485.0,0.1669]
[1723647770065,0.3608,59494.0,59486.0,0.084028]
[1723647770066,0.084025,59490.0,59486.0,0.084028]
[1723647770259,0.3608,59494.0,59486.0,0.084028]
[1723647770461,0.084025,59489.0,59487.0,0.084027]
[1723647770655,0.3608,59492.0,59484.0,0.00125231]
[1723647770855,0.3608,59492.0,59484.0,0.36105231]
[1723647771169,0.00025231,59496.0,59495.0,0.084016]
[1723647771564,0.00025231,59496.0,59495.0,0.444816]
[1723647773967,0.00025231,59496.0,59495.0,0.445816]
[1723647774556,0.3608,59506.0,59495.0,1.350056]
[1723647774755,0.3608,59506.0,59505.0,0.084002]
[1723647775353,0.3608,59515.0,59501.0,0.3608]
[1723647775552,0.36789949,59515.0,59502.0,0.084006]
[1723647775762,0.083991,59513.0,59510.0,0.083994]
[1723647776062,0.00025208,59514.0,59502.0,0.00025208]
[1723647776365,0.083992,59512.0,59510.0,0.083994]
[1723647777755,0.00025208,59514.0,59510.0,0.083994]
[1723647777960,0.014,59512.0,59511.0,0.083993]
[1723647778666,0.016,59512.0,59511.0,0.083993]
[1723647779064,0.016,59512.0,59511.0,0.259893]
[1723647779461,0.014,59512.0,59511.0,0.259893]
[1723647780869,0.167988,59511.0,59510.0,0.001]
[1723647781069,0.256194,59511.0,59510.0,0.001]
[1723647781260,0.084,59507.0,59504.0,0.084003]
[1723647781460,0.3608,59508.0,59506.0,0.084]
[1723647781763,0.3608,59508.0,59507.0,0.083999]
[1723647781970,0.085993,59512.0,59507.0,0.083999]
[1723647781971,0.083993,59512.0,59507.0,0.083999]
[1723647782470,0.014,59511.0,59510.0,0.084995]
[1723647782764,0.014,59511.0,59510.0,0.002]
[1723647782970,0.097994,59511.0,59510.0,0.002]
[1723647783172,0.181988,59511.0,59510.0,0.002]
[1723647783468,0.542788,59511.0,59510.0,0.002]
[1723647783660,0.544788,59511.0,59510.0,0.002]
[1723647783860,0.544788,59511.0,59510.0,0.001]
[1723647784165,0.824294,59511.0,59502.0,0.00025208]
[1723647784371,0.444805,59503.0,59502.0,0.00025208]
[1723647785867,0.444805,59503.0,59502.0,0.00125208]
[1723647786059,0.3608,59503.0,59502.0,0.00125208]
[1723647786263,0.3768,59511.0,59502.0,0.00125208]
[1723647786766,0.084004,59504.0,59502.0,0.00125208]
[1723647787364,0.084004,59504.0,59502.0,0.00025208]
[1723647787569,0.003,59503.0,59502.0,0.00125208]
[1723647787767,0.016,59503.0,59502.0,0.00225208]
[1723647788371,0.016,59503.0,59502.0,0.08625808]
[1723647788567,0.003,59503.0,59502.0,0.08625808]
[1723647788863,0.003,59503.0,59502.0,0.1359154]
[1723647789168,0.013,59504.0,59503.0,0.084005]
[1723647789370,0.45189065,59511.0,59508.0,0.083998]
[1723647789573,0.09109065,59511.0,59505.0,0.04966482]
[1723647789873,0.083989,59515.0,59513.0,0.083991]
[1723647791171,0.00708093,59516.0,59513.0,0.083991]
[1723647791365,0.2354,59532.0,59513.0,0.083991]
[1723647791366,0.083977,59523.0,59513.0,0.51124369]
[1723647791574,0.083971,59528.0,59513.0,0.609691]
[1723647791774,0.083985,59518.0,59513.0,0.444791]
[1723647792072,0.00325208,59514.0,59513.0,0.445791]
[1723647792268,0.00325208,59514.0,59513.0,0.610691]
[1723647792669,0.00325208,59514.0,59513.0,1.114771]
[1723647792966,0.083971,59527.0,59513.0,1.51309558]
[1723647793163,0.083971,59527.0,59524.0,0.04967006]
[1723647793474,0.083971,59527.0,59523.0,0.41047006]
[1723647793875,0.083971,59527.0,59526.0,0.083972]
[1723647794476,0.083967,59530.0,59526.0,0.083972]
[1723647794674,0.00016692,59531.0,59526.0,0.083972]
[1723647794675,0.08397,59528.0,59526.0,0.083972]
[1723647795180,0.08397,59528.0,59526.0,0.084972]
[1723647795974,0.08397,59528.0,59526.0,0.001]
[1723647796175,0.08413192,59531.0,59526.0,0.001]
[1723647796371,0.00016692,59531.0,59524.0,0.17920866]
[1723647796575,0.00016692,59531.0,59530.0,0.083967]
[1723647797781,0.00016692,59531.0,59530.0,0.09120009]
[1723647798079,0.00016692,59531.0,59530.0,0.14087015]
[1723647798476,0.00016692,59531.0,59530.0,0.09120009]
[1723647798784,0.00016692,59531.0,59530.0,0.14077947]
[1723647798982,0.01416692,59531.0,59530.0,0.14177947]
[1723647799374,0.01416692,59531.0,59530.0,0.084967]
[1723647801178,0.01416692,59531.0,59530.0,1.03850638]
[1723647801374,0.083948,59544.0,59540.0,0.083952]
[1723647801573,0.083949,59543.0,59541.0,0.5263]
[1723647801784,0.444748,59544.0,59541.0,0.1655]
[1723647801983,0.08395,59542.0,59541.0,0.1655]
[1723647802880,0.3608,59544.0,59541.0,0.1655]
[1723647803382,0.3608,59544.0,59542.0,0.08395]
[1723647804081,0.00698685,59549.0,59541.0,0.1655]
[1723647804283,0.3608,59552.0,59542.0,0.1627]
[1723647804484,0.3608,59552.0,59545.0,0.083944]
[1723647804485,0.36809742,59552.0,59545.0,0.083944]
[1723647804679,0.36809742,59552.0,59541.0,0.1665]
[1723647805183,0.083946,59545.0,59541.0,0.1665]
[1723647805570,0.083946,59545.0,59541.0,0.250451]
[1723647805778,0.006,59543.0,59542.0,0.08395]
[1723647806280,0.3608,59552.0,59542.0,0.08395]
[1723647806878,0.3608,59552.0,59541.0,0.1675]
[1723647806879,0.083942,59548.0,59541.0,0.1675]
[1723647807079,0.36782928,59552.0,59545.0,0.083944]
[1723647807590,0.08394,59550.0,59546.0,0.083944]
[1723647809086,0.08394,59550.0,59546.0,0.084944]
[1723647809488,0.08394,59550.0,59547.0,0.1711]
[1723647809991,0.08994,59550.0,59547.0,0.1711]
[1723647810682,0.08994,59550.0,59547.0,0.255043]
[1723647810985,0.08994,59550.0,59548.0,0.083941]
[1723647811178,0.006,59550.0,59549.0,0.44474]
[1723647811590,0.1708,59564.0,59549.0,1.2646]
[1723647811779,0.083933,59554.0,59550.0,0.252738]
[1723647812092,0.083933,59554.0,59550.0,0.1688]
[1723647813185,0.083928,59558.0,59550.0,0.1688]
[1723647813386,0.3608,59560.0,59553.0,0.083934]
[1723647813790,0.006,59554.0,59553.0,0.083934]
[1723647814192,0.006,59554.0,59550.0,0.002]
[1723647814790,0.006,59554.0,59553.0,0.083934]
[1723647815489,0.006,59554.0,59553.0,0.084934]
[1723647815690,0.006,59554.0,59553.0,0.083934]
[1723647815992,0.006,59554.0,59553.0,0.09124452]
[1723647816383,0.083926,59559.0,59555.0,0.083931]
[1723647816888,0.00735677,59560.0,59554.0,0.5356]
[1723647817188,0.083923,59561.0,59554.0,0.5356]
[1723647817593,0.08392,59563.0,59560.0,0.083925]
[1723647817792,0.444718,59565.0,59555.0,0.08393]
[1723647818098,0.083924,59561.0,59554.0,0.5356]
[1723647818398,0.1651,59569.0,59560.0,0.3608]
[1723647818595,0.00746006,59571.0,59566.0,0.3608]
[1723647818786,0.083915,59567.0,59566.0,0.3608]
[1723647818985,0.1415,59570.0,59560.0,0.083924]
[1723647819182,0.1415,59570.0,59558.0,0.00753223]
[1723647819183,0.3608,59567.0,59558.0,0.00753223]
[1723647819380,0.1415,59570.0,59561.0,0.08417486]
[1723647819584,0.083919,59564.0,59561.0,0.00025186]
[1723647821697,0.083919,59564.0,59561.0,0.00125186]
[1723647821999,0.083922,59562.0,59561.0,0.00125186]
[1723647822490,0.444715,59567.0,59562.0,0.083922]
[1723647822690,0.444715,59567.0,59562.0,0.13355678]
[1723647823299,0.444715,59567.0,59562.0,0.083922]
[1723647823498,0.444715,59567.0,59562.0,0.13355678]
[1723647823792,0.3608,59567.0,59566.0,0.083916]
[1723647823990,0.00727929,59571.0,59568.0,0.083913]
[1723647824190,0.3317,59575.0,59565.0,0.41043478]
[1723647824191,0.3608,59573.0,59565.0,0.41043478]
[1723647824393,0.083915,59567.0,59565.0,0.41043478]
[1723647824597,0.3608,59573.0,59565.0,0.3608]
[1723647824991,0.083916,59567.0,59565.0,0.3608]
[1723647825791,0.083909,59571.0,59565.0,0.3608]
[1723647826495,0.083911,59570.0,59565.0,0.3608]
[1723647826890,0.083911,59570.0,59565.0,0.3618]
[1723647827292,0.083911,59570.0,59566.0,0.04963478]
[1723647827999,0.083911,59570.0,59567.0,0.04963478]
[1723647828392,0.083911,59570.0,59568.0,0.04963478]
[1723647828588,0.3608,59573.0,59569.0,0.04966844]
[1723647828794,0.16757748,59575.0,59565.0,0.3628]
[1723647828795,0.16757748,59575.0,59571.0,0.04966276]
[1723647828995,0.00737748,59575.0,59572.0,0.3608]
[1723647829297,0.00737748,59575.0,59565.0,0.653]
[1723647829298,0.083908,59572.0,59568.0,0.05716562]
[1723647829601,0.083909,59571.0,59570.0,0.3608]
[1723647829799,0.166,59578.0,59570.0,0.3608]
[1723647830097,0.5023,59579.0,59574.0,0.0496807]
[1723647830397,0.0839,59578.0,59576.0,0.0496807]
[1723647830603,0.083901,59577.0,59571.0,0.06610585]
[1723647831098,0.00741881,59579.0,59576.0,0.444702]
[1723647831300,0.0083007,59582.0,59576.0,0.42690585]
[1723647831491,0.0921947,59582.0,59577.0,0.0496662]
[1723647831690,0.0921947,59582.0,59573.0,0.06610585]
[1723647831691,0.50352,59581.0,59573.0,0.0496662]
[1723647831892,0.50352,59581.0,59570.0,0.42690585]
[1723647831893,0.083904,59575.0,59572.0,0.0496662]
[1723647832096,0.08389,59585.0,59570.0,0.3608]
[1723647832097,0.00088,59586.0,59574.0,0.7006662]
[1723647832297,0.4534,59606.0,59585.0,0.7216]
[1723647832597,0.4534,59606.0,59582.0,0.08278344]
[1723647832598,0.4534,59606.0,59598.0,0.374071]
[1723647832800,0.4534,59606.0,59598.0,0.2902]
[1723647833002,0.4534,59606.0,59602.0,0.083865]
[1723647833193,0.4534,59606.0,59604.0,0.3608]
[1723647833194,0.2989,59606.0,59604.0,0.3608]
[1723647833394,0.3608,59613.0,59607.0,0.083858]
[1723647833593,0.36816066,59613.0,59604.0,0.3608]
[1723647834704,0.36816066,59613.0,59609.0,0.083855]
[1723647835500,0.36816066,59613.0,59609.0,0.2902]
[1723647835706,0.3608,59613.0,59609.0,0.2902]
[1723647836002,0.3608,59620.0,59612.0,0.3608]
[1723647836895,0.3608,59613.0,59610.0,0.00025164]
[1723647837092,0.76835524,59620.0,59610.0,0.00025164]
[1723647837093,0.00755524,59620.0,59610.0,0.36105164]
[1723647837405,0.3608,59628.0,59617.0,0.3608]
[1723647837906,0.3608,59628.0,59627.0,0.08383]
[1723647838093,0.3680475,59628.0,59617.0,0.3608]
[1723647838502,0.083832,59626.0,59617.0,0.3608]
[1723647838702,0.3680475,59628.0,59617.0,0.3608]
[1723647839398,0.3680475,59628.0,59617.0,0.45211227]
[1723647839602,0.083836,59624.0,59618.0,0.083843]
[1723647839804,0.3608,59622.0,59618.0,0.083843]
[1723647840007,0.3608,59622.0,59617.0,0.002]
[1723647840008,0.21523,59627.0,59620.0,0.08384]
[1723647840201,0.3608,59623.0,59621.0,0.083838]
[1723647840694,0.3608,59623.0,59622.0,0.083837]
[1723647841802,0.3608,59623.0,59618.0,0.083843]
[1723647842003,0.083835,59624.0,59620.0,0.083839]
[1723647842203,0.0072475,59628.0,59627.0,0.08383]
[1723647842506,0.1693,59642.0,59640.0,0.083811]
[1723647842807,0.3608,59645.0,59641.0,0.08381]
[1723647843012,0.3608,59645.0,59634.0,0.3608]
[1723647843208,0.36817727,59645.0,59637.0,0.00025164]
[1723647843408,0.00737727,59645.0,59644.0,0.083806]
[1723647843610,0.3608,59653.0,59640.0,0.7234]
[1723647843813,0.083811,59641.0,59640.0,0.7216]
[1723647844005,0.083815,59638.0,59637.0,0.00025164]
[1723647844208,0.444615,59638.0,59637.0,0.00025164]
[1723647844409,0.947655,59638.0,59637.0,0.00025164]
[1723647844713,0.083832,59626.0,59621.0,0.083838]
[1723647844911,0.3608,59630.0,59619.0,0.3608]
[1723647845116,0.083782,59633.0,59619.0,0.3608]
[1723647845306,0.083782,59633.0,59619.0,0.36834078]
[1723647845506,0.083828,59629.0,59619.0,0.36834078]
[1723647845707,0.3263,59634.0,59619.0,0.36834078]
[1723647846009,0.3263,59634.0,59629.0,0.083827]
[1723647846010,0.3608,59630.0,59629.0,0.083827]
[1723647846208,0.00025019,59632.0,59631.0,0.083825]
[1723647847413,0.00025019,59632.0,59631.0,0.586905]
[1723647847612,0.00025019,59632.0,59631.0,0.083825]
[1723647847810,0.00025019,59632.0,59631.0,1.07073]
[1723647848005,0.083801,59648.0,59631.0,0.986905]
[1723647848219,0.00752161,59650.0,59635.0,0.7232]
[1723647848405,0.444595,59652.0,59640.0,0.3608]
[1723647848608,0.3608,59652.0,59647.0,0.3608]
[1723647848910,0.083799,59649.0,59647.0,0.083802]
[1723647849106,0.083799,59650.0,59648.0,0.3608]
[1723647849306,0.3608,59657.0,59648.0,0.3608]
[1723647849511,0.3608,59657.0,59646.0,0.083803]
[1723647849714,0.3608,59657.0,59644.0,0.00025164]
[1723647850014,0.002,59652.0,59644.0,0.00025164]
[1723647850414,0.002,59652.0,59651.0,0.083797]
[1723647850616,0.002,59652.0,59647.0,0.083802]
[1723647850818,0.002,59652.0,59645.0,0.3608]
[1723647850819,0.083801,59649.0,59645.0,0.3608]
[1723647851120,0.083801,59649.0,59646.0,0.001]
[1723647851306,0.3608,59651.0,59646.0,0.001]
[1723647851502,0.083802,59647.0,59646.0,0.001]
[1723647851817,0.083802,59647.0,59644.0,0.00025164]
[1723647852013,0.3608,59645.0,59644.0,0.00025164]
[1723647852218,0.3608,59651.0,59647.0,0.083801]
[1723647853013,0.002,59652.0,59644.0,0.36105164]
[1723647853218,0.083792,59654.0,59649.0,0.083799]
[1723647853417,0.001,59657.0,59649.0,0.083799]
[1723647853614,0.3608,59652.0,59649.0,0.083799]
[1723647853814,0.001,59651.0,59649.0,0.083799]
[1723647854308,0.001,59651.0,59650.0,0.083798]
[1723647854913,0.083797,59651.0,59649.0,0.001]
[1723647855221,0.3608,59652.0,59649.0,0.085798]
[1723647855410,0.3608,59652.0,59650.0,0.1656]
[1723647855812,0.444595,59652.0,59650.0,0.249398]
[1723647856017,0.3608,59652.0,59651.0,0.251996]
[1723647856215,0.3608,59652.0,59651.0,0.1682]
[1723647856419,0.444595,59652.0,59650.0,0.1666]
[1723647856720,0.3608,59652.0,59650.0,0.1666]
[1723647856909,0.001,59654.0,59651.0,0.3608]
[1723647857215,0.001,59654.0,59653.0,0.083794]
[1723647858122,0.36812043,59658.0,59657.0,0.083788]
[1723647858318,0.3608,59658.0,59657.0,0.083788]
[1723647859222,0.3608,59665.0,59653.0,0.001]
[1723647859413,0.083781,59662.0,59654.0,0.3608]
[1723647859614,0.3608,59660.0,59653.0,0.001]
[1723647859820,0.083792,59654.0,59653.0,0.001]
[1723647860023,0.083792,59654.0,59651.0,0.001]
[1723647860024,0.083795,59652.0,59651.0,0.001]
[1723647860615,0.083798,59651.0,59648.0,0.3608]
[1723647860921,0.083799,59649.0,59641.0,0.5264]
[1723647861123,0.083815,59638.0,59635.0,0.3608]
[1723647861324,0.3608,59636.0,59627.0,0.09117532]
[1723647861619,0.083822,59634.0,59624.0,0.1631]
[1723647861920,0.3608,59636.0,59632.0,0.083823]
[1723647862226,0.444618,59636.0,59624.0,0.1631]
[1723647862420,0.444618,59636.0,59631.0,0.083824]
[1723647862616,0.3608,59636.0,59628.0,0.00025143]
[1723647862814,0.3608,59636.0,59628.0,0.28995143]
[1723647863119,0.3608,59636.0,59635.0,0.083819]
[1723647863820,0.00025093,59640.0,59639.0,0.083813]
[1723647864123,0.00025093,59640.0,59639.0,0.444613]
[1723647864828,0.00025093,59640.0,59639.0,0.49423581]
[1723647865124,0.00025093,59640.0,59639.0,1.237353]
[1723647865623,0.00025093,59640.0,59639.0,1.30351675]
[1723647865818,0.00025093,59640.0,59639.0,1.237353]
[1723647866127,0.00025093,59640.0,59639.0,1.40148718]
[1723647866326,0.00025093,59640.0,59639.0,1.56928718]
[1723647866621,0.00025093,59640.0,59639.0,1.63545093]
[1723647867018,0.01425093,59640.0,59639.0,1.63545093]
[1723647867621,0.083791,59656.0,59639.0,1.63545093]
[1723647867622,0.083787,59658.0,59639.0,1.48547418]
[1723647867928,0.083799,59649.0,59648.0,0.083801]
[1723647868122,0.083794,59654.0,59646.0,0.04947075]
[1723647868323,0.083794,59654.0,59652.0,0.083794]
[1723647868524,0.36815683,59659.0,59656.0,0.083788]
[1723647868726,0.3608,59659.0,59651.0,0.33917075]
[1723647868923,0.444585,59659.0,59658.0,0.083787]
[1723647869128,0.3608,59659.0,59658.0,0.083787]
[1723647870023,0.444585,59659.0,59658.0,0.083787]
[1723647870227,0.3608,59659.0,59658.0,0.083787]
[1723647870423,0.00734495,59663.0,59662.0,0.083781]
[1723647870625,0.3608,59664.0,59662.0,0.083781]
[1723647870819,0.3608,59670.0,59662.0,0.083781]
[1723647871020,0.3608,59670.0,59663.0,0.083779]
[1723647871227,0.083776,59666.0,59664.0,0.083778]
[1723647872325,0.3608,59665.0,59661.0,0.00025143]
[1723647872528,0.083781,59662.0,59661.0,0.00025143]
[1723647872724,0.167562,59662.0,59661.0,0.00025143]
[1723647872923,0.90284,59662.0,59651.0,0.04947075]
[1723647873221,0.083786,59659.0,59658.0,0.001]
[1723647873427,0.444586,59659.0,59658.0,0.001]
[1723647873621,0.444586,59659.0,59646.0,0.065961]
[1723647873622,1.26368,59659.0,59651.0,0.04947075]
[1723647873815,1.26368,59659.0,59650.0,0.04947075]
[1723647873816,0.3608,59653.0,59650.0,0.04947075]
[1723647874219,0.083796,59651.0,59650.0,0.04947075]
[1723647874617,0.50292,59650.0,59643.0,0.00096822]
[1723647874827,0.3608,59645.0,59638.0,0.065961]
[1723647875031,0.1367,59644.0,59638.0,0.065961]
[1723647875217,0.3608,59645.0,59638.0,0.065961]
[1723647875417,0.3608,59645.0,59642.0,0.083809]
[1723647875624,0.3608,59645.0,59640.0,0.065961]
[1723647875829,0.3608,59644.0,59640.0,0.065961]
[1723647876020,0.00765104,59647.0,59642.0,0.14977]
[1723647876222,0.00025143,59649.0,59648.0,0.083801]
[1723647879625,0.08405043,59649.0,59648.0,0.0660747]
[1723647879826,0.00025143,59649.0,59646.0,0.0660747]
[1723647880129,0.09705043,59649.0,59648.0,0.001]
[1723647882028,0.08605043,59649.0,59648.0,0.001]
[1723647882236,0.08605043,59649.0,59648.0,0.002]
[1723647882926,0.09405043,59649.0,59648.0,0.001]
[1723647883322,0.99701043,59649.0,59648.0,0.001]
[1723647883837,0.60601043,59649.0,59648.0,0.002]
[1723647884137,1.00601043,59649.0,59648.0,0.002]
[1723647885321,1.08980943,59649.0,59648.0,0.002]
[1723647885526,0.97246537,59649.0,59638.0,0.00025143]
[1723647885820,0.3608,59639.0,59638.0,0.00025143]
[1723647886024,0.3608,59639.0,59627.0,0.44358344]
[1723647886025,0.083823,59632.0,59627.0,0.0660747]
[1723647886225,0.36917121,59639.0,59627.0,0.0660747]
[1723647886226,0.3608,59628.0,59627.0,0.08383]
[1723647886426,0.2035,59628.0,59627.0,0.08383]
[1723647886632,0.2035,59628.0,59627.0,0.0660747]
[1723647886832,0.2035,59628.0,59626.0,0.0660747]
[1723647887035,0.70662,59628.0,59624.0,0.0660747]
[1723647887232,0.2035,59628.0,59625.0,0.083832]
[1723647887444,0.2035,59628.0,59626.0,0.083831]
[1723647887735,0.2035,59628.0,59627.0,0.08383]
[1723647887934,0.00025143,59633.0,59632.0,0.083823]
[1723647888139,0.00025143,59633.0,59631.0,0.0660747]
[1723647888529,0.00025143,59633.0,59630.0,0.0660747]
[1723647888731,0.00025143,59633.0,59632.0,0.083823]
[1723647889037,0.08407343,59633.0,59627.0,0.36831257]
[1723647889336,0.00025143,59633.0,59632.0,0.14980799]
[1723647889634,0.00025143,59633.0,59632.0,0.083823]
[1723647890249,0.01225143,59633.0,59632.0,0.084823]
[1723647890733,0.01225143,59633.0,59632.0,0.445623]
[1723647891129,0.41105394,59648.0,59632.0,1.62708]
[1723647891433,0.3608,59648.0,59642.0,0.3608]
[1723647891635,0.3608,59648.0,59642.0,0.42676898]
[1723647892028,0.3608,59648.0,59645.0,0.083804]
[1723647892339,0.3608,59648.0,59642.0,0.3608]
[1723647892340,0.36836004,59648.0,59642.0,0.3608]
[1723647892636,0.36836004,59648.0,59641.0,0.06596898]
[1723647892637,0.083809,59642.0,59641.0,0.00025143]
[1723647893134,0.586809,59642.0,59641.0,0.00025143]
[1723647893433,0.903,59642.0,59632.0,0.06696898]
[1723647893735,0.083822,59633.0,59632.0,0.001]
[1723647895632,0.29015143,59638.0,59632.0,0.001]
[1723647895633,0.3608,59636.0,59632.0,0.001]
[1723647895833,0.00025143,59638.0,59635.0,0.083819]
[1723647896237,0.00801705,59638.0,59637.0,0.083816]
[1723647896436,0.00025143,59638.0,59637.0,0.083816]
[1723647896836,0.00025143,59638.0,59637.0,0.444616]
[1723647897232,0.00025143,59638.0,59637.0,0.083816]
[1723647897440,0.00025143,59638.0,59637.0,0.218216]
[1723647898934,0.00525143,59638.0,59637.0,0.218216]
[1723647899135,0.00525143,59638.0,59637.0,0.38707279]
[1723647899439,0.6507,59655.0,59637.0,0.38707279]
[1723647899440,0.083796,59651.0,59648.0,0.0838]
[1723647899648,0.083798,59650.0,59643.0,0.42660602]
[1723647899831,0.083798,59650.0,59645.0,0.083804]
[1723647900238,0.083798,59650.0,59643.0,0.42660602]
[1723647900436,0.083798,59650.0,59644.0,0.06580602]
[1723647901142,0.005,59651.0,59648.0,0.001]
[1723647901350,0.005,59651.0,59648.0,0.084799]
[1723647901733,0.005,59651.0,59650.0,0.083798]
[1723647902642,0.005,59651.0,59650.0,0.1292]
[1723647903042,0.00776754,59653.0,59650.0,0.1292]
[1723647903342,0.00025143,59653.0,59652.0,0.14960102]
[1723647903544,0.00025143,59653.0,59652.0,0.083795]
[1723647904742,0.00025143,59653.0,59652.0,0.084795]
[1723647904941,0.00025143,59653.0,59652.0,0.16705252]
[1723647905242,0.00025143,59653.0,59652.0,0.084795]
[1723647905445,0.00025143,59653.0,59652.0,0.16705252]
[1723647905640,0.00025143,59653.0,59652.0,0.084795]
[1723647905949,0.08404543,59653.0,59652.0,0.001]
[1723647906339,0.58696543,59653.0,59652.0,0.001]
[1723647906645,0.58696543,59653.0,59643.0,0.69755752]
[1723647906646,0.90317143,59653.0,59644.0,0.06581395]
[1723647906841,0.083808,59643.0,59642.0,0.00025143]
[1723647907039,0.083808,59643.0,59642.0,0.06606538]
[1723647907245,0.083808,59643.0,59642.0,0.00025143]
[1723647908151,0.01887766,59653.0,59642.0,0.00025143]
[1723647908341,0.01887766,59653.0,59644.0,0.06586244]
[1723647908842,0.083798,59651.0,59649.0,0.3608]
[1723647909047,0.083798,59651.0,59650.0,0.132]
[1723647909951,0.3608,59652.0,59645.0,0.06586244]
[1723647910150,0.083801,59648.0,59645.0,0.06586244]
[1723647910351,0.083801,59648.0,59643.0,0.444608]
[1723647910352,0.083802,59647.0,59643.0,0.42666244]
[1723647910655,0.086796,59651.0,59650.0,0.001]
[1723647911152,0.097796,59651.0,59650.0,0.001]
[1723647911745,0.083801,59648.0,59645.0,0.001]
[1723647911949,0.3638,59652.0,59645.0,0.001]
[1723647912148,0.003,59647.0,59646.0,0.083803]
[1723647912451,0.003,59647.0,59646.0,0.209803]
[1723647912841,0.003,59647.0,59645.0,0.06693424]
[1723647912842,0.083803,59646.0,59645.0,0.06693424]
[1723647913051,0.003,59647.0,59644.0,0.06593424]